Workbook

Sheet 01.07.2020
D1: Приложение №2
D2: к постановлению администрации ЗАТО г.Радужный Владимирской области
D3: от 20.07.2020г. № 855
A5: Сведения о фактической численности муниципальных служащих, работников казенных и бюджетных учреждений и расходы на их денежное содержание по состоянию за 1 полугодие 2020 года
A7: №п/п | B7: Код раздела (подраздела) | C7: Наименование раздела (подраздела) расходов | D7: Фактическая численность на 01.07.2020 года (чел.) | E7: Годовой фонд оплаты труда с начислениями (тыс.руб.) | F7: Исполнено за отчетный период (тыс.руб.)
A8: 1 | B8: 2 | C8: 3 | D8: 4 | E8: 5 | F8: 6
A9: 1 | B9: 0100 | C9: Общегосударственные вопросы | D9: =D11+D12+D13+D14+D15 -> 195.5 | E9: =E11+E12+E13+E14+E15 -> 67963.073 | F9: =F12+F13+F14+F15 -> 32680.47
C10: в том числе:
A11: 1.1 | B11: 0102 | C11: Функционирование высшего должностного лица субъекта Российской Федерации и муниципального образования
A12: 1.2 | B12: 0103 | C12: Функционирование законодательных (представительных) органов государственной власти и представительных органов муниципальных образований | D12: 2 | E12: 1218.164 | F12: 615.99
A13: 1.3 | B13: 0104 | C13: Функционирование Правительства Российской Федерации, высших исполнительных органов государственной власти субъектов Российской Федерации, местных администраций | D13: 18 | E13: 10774.16 | F13: 5239.41
A14: 1.4 | B14: 0106 | C14: Обеспечение деятельности финансовых, налоговых и таможенных органов и органов финансового (финансово-бюджетного) надзора | D14: 10 | E14: 5187.079 | F14: 2544.93
A15: 1.5 | B15: 0113 | C15: Другие общегосударственные вопросы | D15: 165.5 | E15: 50783.67 | F15: 24280.14
A16: 2 | B16: 0300 | C16: Национальная безопасность и правоохранительная деятельность, всего, в том числе | D16: =D18 -> 5 | E16: =E18 -> 2323.678 | F16: =F18 -> 1090.01
C17: в том числе:
A18: 2.1 | B18: 0309 | C18: Защита населения и территории от чрезвычайных ситуаций природного и техногенного характера, гражданская оборона | D18: 5 | E18: 2323.678 | F18: 1090.01
A19: 3. | B19: 0400 | C19: Национальная экономика | D19: 41 | E19: 15986.68 | F19: 6761.64
C20: в том числе:
A21: 3.1 | B21: 0409 | C21: Дорожное хозяйство (дорожные фонды) | D21: 41 | E21: 15986.68 | F21: 6761.64
A22: 4. | B22: 0500 | C22: Жилищно-коммунальное хозяйство | D22: =D24+D25 -> 62 | E22: =E24+E25 -> 25689.271 | F22: 11656.78
C23: в том числе:
A24: 4.1 | B24: 0503 | C24: Благоустройство | D24: 6 | E24: 2696.181 | F24: 839.14
A25: 4.2 | B25: 0505 | C25: Другие вопросы в области жилищно-коммунального хозяйства | D25: 56 | E25: 22993.09 | F25: 10817.64
A26: 5 | B26: 0700 | C26: Образование | D26: =D28+D29+D30+D31 -> 563 | E26: =E28+E29+E30+E31 -> 221116.5 | F26: =F28+F29+F30+F31 -> 114951.61
C27: в том числе:
A28: 5.1 | B28: 0701 | C28: Дошкольное образование | D28: 242 | E28: 84830.54 | F28: 42793.92
A29: 5.2 | B29: 0702 | C29: Общее образование | D29: 196 | E29: 89768.69 | F29: 49127.61
A30: 5.3 | B30: 0703 | C30: Дополнительное образование детей | D30: 99 | E30: =14794.77+4467.42+17132.41 -> 36394.6 | F30: =10148.66+8069.17 -> 18217.83
A31: 5.4. | B31: 0709 | C31: Другие вопросы в области образования | D31: 26 | E31: 10122.67 | F31: 4812.25
A32: 6. | B32: 0800 | C32: Культура, кинематография | D32: =D34+D35 -> 89 | E32: =E34+E35 -> 32197.33 | F32: =F34+F35 -> 16216.72
C33: в том числе:
A34: 6.1 | B34: 0801 | C34: Культура | D34: 50 | E34: 21044.83 | F34: 10602.19
A35: 6.2 | B35: 0804 | C35: Другие вопросы в области культуры, кинематографии | D35: 39 | E35: 11152.5 | F35: 5614.53
A36: 7. | B36: 1000 | C36: Социальная политика | D36: =D38 -> 2 | E36: =E38 -> 1002.55 | F36: =F38 -> 423.48
C37: в том числе:
A38: 7.1 | B38: 1006 | C38: Другие вопросы в области социальной политики | D38: 2 | E38: 1002.55 | F38: 423.48
A39: 8. | B39: 1100 | C39: Физическая культура и спорт | D39: =D41 -> 1 | E39: =E41 -> 910.58 | F39: =F41 -> 247.21
C40: в том числе:
A41: 8.1 | B41: 1103 | C41: Спорт высших достижений | D41: 1 | E41: 910.58 | F41: 247.21
C42: Всего: | D42: =D9+D16+D19+D22+D26+D32+D36+D39 -> 958.5 | E42: =E9+E16+E19+E22+E26+E32+E36+E39 -> 367189.662 | F42: =F9+F16+F19+F22+F26+F32+F36+F39 -> 184027.92
B44: Заместитель главы администрации города по финансам и экономике, начальник финансового управления | E44: О.М.Горшкова
A47: В.Н. Милованова
A48: 3-67-17
